Cogmind - Beta 13 @@@ ROGUE MODE // 2024.07.19 @ 00:42:16 Player: harambe Result: Destroyed by D-53 Grenadier with Mini Grenade Launcher Performance ------------- Evolutions (0) 0 Regions Visited (2) 400 Robots Destroyed (8) 40 Value Destroyed (190) 190 Prototype IDs (0) 0 Alien Tech Used (0) 0 Bonus (0) 0 TOTAL SCORE: 630 Bonus ------- None Cogmind --------- Core Integrity 0/250 Matter 300/300 Energy 123/125 System Corruption 0% Temperature Cool (1) Movement Treading (160) Location -10/Mines Parts ------- > --- POWER (1) -------- Light Ion Engine > --- PROPULSION (2) --- Light Treads Aluminum Leg > --- UTILITY (2) ------ Small Storage Unit > --- WEAPON (2) ------- Beam Rifle Heavy Battle Rifle > --- INVENTORY (8) ---- Light Ion Engine Light Treads Hover Unit Heat Sink Beam Rifle Particle Cannon Grenade Launcher Peak State ------------ > --- POWER ------------ Light Ion Engine > --- PROPULSION ------- Aluminum Leg Aluminum Leg > --- UTILITY ---------- Small Storage Unit Terrain Scanner > --- WEAPON ----------- Beam Rifle Heavy Battle Rifle > --- INVENTORY -------- Light Ion Engine Light Treads Light Treads Hover Unit Heat Sink Beam Rifle Particle Cannon Grenade Launcher [Rating: 12] Favorites ----------- Power Light Ion Engine Engine Light Ion Engine Propulsion Aluminum Leg Treads Light Treads Leg Aluminum Leg Utility Small Storage Unit Device Terrain Scanner Storage Small Storage Unit Weapon Light Assault Rifle Energy Gun Beam Rifle Ballistic Gun Light Assault Rifle Build | -11 -10 -10 ------- Run | Yrd Mat Min Slots Evolved . | . . . Power . | . . . Propulsion . | . . . Utility . | . . . Weapon . | . . . Parts Attached 11 | . 7 4 Power 1 | . 1 . Engine 1 | . 1 . Core . | . . . Reactor . | . . . Propulsion 4 | . 3 1 Treads 1 | . . 1 Leg 3 | . 3 . Wheel . | . . . Hover . | . . . Flight . | . . . Utility 2 | . 2 . Device 2 | . 2 . Storage . | . . . Processor . | . . . Hackware . | . . . Protection . | . . . Artifact . | . . . Weapon 4 | . 1 3 Energy Gun 2 | . 1 1 Energy Cannon . | . . . Ballistic Gun 2 | . . 2 Ballistic Cannon . | . . . Launcher . | . . . Special Weapon . | . . . Impact Weapon . | . . . Slashing Weapon . | . . . Piercing Weapon . | . . . Special Melee Weapon . | . . . Unidentified Prototypes . | . . . Parts Lost 2 | . . 2 Power . | . . . Propulsion 1 | . . 1 Utility 1 | . . 1 Weapon . | . . . Highest Loss Streak 2 | . . 2 To Critical Strikes . | . . . Average Slot Usage (%) 96 | . 95 98 Engine 14 | . 14 14 Leg 27 | . 28 27 Device 10 | . 9 13 Storage 14 | . 14 14 Energy Gun 7 | . 5 14 Ballistic Gun 20 | . 22 14 Naked Turns . | . . . Heaviest Build 16 | 10 13 16 Greatest Support 20 | 20 20 20 Greatest Overweight (x) . | . . . Average Overweight (x) . | . . . Largest Inventory Capacity 8 | . 8 8 Average Capacity 8 | . 8 8 Most Carried 8 | . 8 8 Average Carried 7 | . 7 7 Final Capacity 8 | 8 8 8 Final Carried 8 | 6 8 7 Class Distribution -------------------- 100% | Mutant Dominant Class ---------------- Mutant | -10/Materials Mutant | -10/Mines Resources | -11 -10 -10 ----------- Run | Yrd Mat Min Matter Collected 342 | 200 97 45 Remotely . | . . . Salvage Created 242 | . 196 46 Parts 17 | . 16 1 Haulers Intercepted . | . . . Recyclers Shooed 1 | . 1 . Parts Field Recycled . | . . . Retrieved Matter . | . . . Parts Self-Destructed . | . . . Prevented . | . . . Kills | -11 -10 -10 ------- Run | Yrd Mat Min Combat Hostiles Destroyed 7 | . 6 1 Guns 7 | . 6 1 Classes Destroyed 3 | . 3 . Worker 1 | . 1 . Swarmer 3 | . 3 . Grunt 4 | . 3 1 Best Kill Streak 5 | . 5 1 Combat Bots Only 4 | . 4 1 Max Kills in Single Turn 2 | . 2 1 Gunslinging . | . . . Exploded . | . . . Melee . | . . . Uniques/NPCs Destroyed . | . . . Combat | -11 -10 -10 -------- Run | Yrd Mat Min Hostile Shots Fired 73 | . 37 36 Missed 17 | . 8 9 Damage Taken 844 | . 313 531 Core 258 | . 54 204 Absorbed by Shields . | . . . Core Remaining (%) 100 | 100 . . Volleys Fired 34 | . 21 13 Largest 2 | . 2 2 Hottest 89 | . 76 89 Shots Fired 66 | . 40 26 Gun 66 | . 40 26 Cannon . | . . . Launcher . | . . . Special . | . . . Kinetic 40 | . 27 13 Thermal 26 | . 13 13 Explosive . | . . . Electromagnetic . | . . . Robot Hit Streak 5 | . 5 4 Robot Miss Streak 4 | . 4 3 Penetration Max . | . . . Secondary Targets . | . . . Shots Hit Robots 37 | . 25 12 Core Hits 19 | . 14 5 Critical Kills . | . . . Critical Parts Destroyed . | . . . Critical Strikes 3 | . 3 . Burn 3 | . 3 . Melee Attacks . | . . . Impact . | . . . Slashing . | . . . Piercing . | . . . Sneak Attacks . | . . . Combat Hostiles . | . . . Follow-up Attacks . | . . . Damage Inflicted 391 | . 273 118 Guns 391 | . 273 118 Cannons . | . . . Explosions . | . . . Melee . | . . . Ramming . | . . . Kinetic 201 | . 141 60 Thermal 190 | . 132 58 Explosive . | . . . Electromagnetic . | . . . Impact . | . . . Slashing . | . . . Piercing . | . . . Highest Corruption . | . . . Average Corruption . | . . . Corruption Purged . | . . . Corruption Blocked . | . . . Overload Shots . | . . . Overflow Damage . | . . . Projectiles . | . . . Explosions . | . . . Melee . | . . . Knockbacks . | . . . Impact . | . . . Kinetic . | . . . Secondary . | . . . Self-Inflicted Damage . | . . . Shots . | . . . Rammed . | . . . Targets Rammed . | . . . Kicked . | . . . Crushed . | . . . Highest Temperature 344 | . 270 344 Average Temperature 137 | . 108 167 Received Heat Transfer 321 | . 114 207 Effects 1 | . 1 . Interference 1 | . 1 . Siege Activations . | . . . Robots Corrupted . | . . . Combat Hostiles . | . . . Parts Fried . | . . . Impact Corruptions . | . . . Robots Melted . | . . . Combat Hostiles . | . . . Parts Melted 1 | . 1 . Heat Transferred 703 | . 555 148 Parts Sabotaged . | . . . Parts Stolen . | . . . Parts Stripped . | . . . Power Chain Reactions . | . . . Alert | -11 -10 -10 ------- Run | Yrd Mat Min Peak Influence 230 | . 230 139 Initial 89 | . . 89 Average 91 | . 76 123 Maximum Alert Level 1 | . 1 . Low Security (%) 90 | . 86 100 Level 1 9 | . 13 . Level 2 . | . . . Level 3 . | . . . Level 4 . | . . . Level 5 . | . . . High Security . | . . . Max Security . | . . . Squads Dispatched 1 | . 1 . Investigation . | . . . Extermination . | . . . Reinforcement 1 | . 1 . Assault . | . . . Garrison . | . . . Intercept . | . . . Searches Triggered . | . . . Construction Impeded . | . . . Haulers Reinforced . | . . . Active Scanning Responses . | . . . Cargo Convoy Interrupts . | . . . Stealth | -11 -10 -10 --------- Run | Yrd Mat Min Distress Signals 2 | . 2 . Communications Jammed . | . . . Distress Signals . | . . . Times Spotted 28 | . 10 18 Peak Tracking Total 11 | . 7 11 Tactical Retreats 3 | . 2 1 Traps | -11 -10 -10 ------- Run | Yrd Mat Min Traps Triggered . | . . . Indirectly . | . . . Trap Hack Attempts . | . . . Triggered . | . . . Disarmed . | . . . Reprogrammed . | . . . Reused . | . . . Traps Extracted . | . . . Installed . | . . . Triggered . | . . . Machines | -11 -10 -10 ---------- Run | Yrd Mat Min Machines Disabled 1 | . . 1 Max in Single Turn 1 | . . 1 Machines Repaired . | . . . Machines Dismantled . | . . . Machines Sabotaged . | . . . Overloaded Fab Kills . | . . . Hacking | -11 -10 -10 --------- Run | Yrd Mat Min Machines Accessed 1 | . 1 . Terminals 1 | . 1 . Fabricators . | . . . Repair Stations . | . . . Recycling Units . | . . . Scanalyzers . | . . . Garrison Access . | . . . Total Hacks 1 | . 1 . Successful . | . . . Failed 1 | . 1 . Catastrophic . | . . . Database Lockouts . | . . . Manual . | . . . Terminals 1 | . 1 . Fabricators . | . . . Repair Stations . | . . . Recycling Units . | . . . Scanalyzers . | . . . Garrison Access . | . . . Terminal Hacks . | . . . Fabricator Hacks . | . . . Repair Station Hacks . | . . . Recycling Unit Hacks . | . . . Scanalyzer . | . . . Garrison Access Hacks . | . . . Unauthorized Hacks . | . . . Terminals . | . . . Fabricators . | . . . Repair Stations . | . . . Recycling Units . | . . . Scanalyzers . | . . . Garrison Access . | . . . Data Cores Recovered . | . . . Used . | . . . Hacking Detections 1 | . 1 . Full Trace Events . | . . . Feedback Events . | . . . Feedback Blocked . | . . . Robot Schematics Acquired . | . . . Robots Built . | . . . Authchips . | . . . Time . | . . . Total Robot Build Rating . | . . . Part Schematics Acquired . | . . . Parts Built . | . . . Authchips . | . . . Time . | . . . Total Part Build Rating . | . . . Parts Repaired . | . . . Time . | . . . Parts Recycled . | . . . Recycled Matter . | . . . Retrieved Matter . | . . . Retrieved Components . | . . . Parts Scanalyzed . | . . . Part Schematics Acquired . | . . . Parts Damaged . | . . . Bothacking | -11 -10 -10 ------------ Run | Yrd Mat Min Used RIF Installer . | . . . Robots Hacked . | . . . Non-combat . | . . . Combat . | . . . Robot Hacks Applied . | . . . Relay Couplers Released . | . . . Fabnet Peak Effective % . | . . . Robots Rewired . | . . . Allies Hacked . | . . . Hacks Repelled . | . . . Allies | -11 -10 -10 -------- Run | Yrd Mat Min Total Allies . | . . . Largest Group . | . . . Highest-Rated Group . | . . . Highest-Rated Ally . | . . . Total Orders . | . . . Ally Attacks . | . . . Total Damage . | . . . Kills . | . . . Allies Corrupted . | . . . Allies Melted . | . . . Intel | -11 -10 -10 ------- Run | Yrd Mat Min Robot Analysis Total . | . . . Derelict Logs Recovered 1 | . . 1 Drone Launches . | . . . Drone Recoveries . | . . . Exploration | -11 -10 -10 ------------- Run | Yrd Mat Min Turns Passed 446 | . 302 144 Spaces Moved 246 | 1 167 78 Core . | . . . Treads 5 | . . 5 Legs 241 | 1 167 73 Wheels . | . . . Hover . | . . . Flight . | . . . Fastest Speed 120 | 120 120 120 Average Speed 120 | 120 120 122 Slowest Speed 160 | 120 120 160 Overloaded Moves . | . . . Propulsion Burnouts . | . . . Robots Hopped . | . . . Cave-ins Triggered . | . . . Exploration Rate (%) 19 | 2 34 21 Regions Visited 2 Branch Regions 1 Pre-discovered Areas 1 | . . 1 Known Exits Taken . | . . . Unknown Exits Taken 2 | 1 1 . Scrap Searched . | . . . Spaces Dug . | . . . Terrain Destroyed . | . . . Melee . | . . . Projectile . | . . . AOE . | . . . Terrain Rammed . | . . . Walls Destroyed . | . . . Machines Disabled . | . . . Actions | -11 -10 -10 --------- Run | Yrd Mat Min Total 342 | . 238 104 Wait 28 | . 28 . Move 244 | . 166 78 Hop . | . . . Pick Up 8 | . 7 1 Fast Attach 1 | . 1 . Attach 1 | . . 1 Detach . | . . . Swap 9 | . 6 3 Drop 11 | . 9 2 Fire 34 | . 21 13 Melee . | . . . Ram . | . . . Kick . | . . . Crush . | . . . Escape Stasis . | . . . Rewire 6 | . . 6 Trap . | . . . Miscellaneous . | . . . Route ------- -11/Scrapyard -10/Materials -10/Mines (discovered 1 exit: [*Mat]) History --------- Turn | Location | Event 1 | -11/Scrapyard | Discovered new exit (range 0) 1 | -11/Scrapyard | Entered Materials 179 | -10/Materials | Discovered new exit (range 16) 303 | -10/Materials | Entered Mines 315 | -10/Mines | Build established: Mutant 323 | -10/Mines | Core integrity fell below 50% 401 | -10/Mines | A weapon hastily lodged in a ceiling crevice suddenly fell to the ground 425 | -10/Mines | Discovered new exit (range 11) 428 | -10/Mines | Assembled infested the area 434 | -10/Mines | Core integrity fell below 20% 447 | -10/Mines | Destroyed by D-53 Grenadier with Mini Grenade Launcher Last Messages --------------- 00436_ Acquired 23 matter. 00437_ as-02496 destroyed. 00438_ Attempting to rewire D-53 Grenadier. 00440_ as-08983 destroyed. 00440_ as-13057 destroyed. 00440_ Attempting to rewire D-53 Grenadier. 00441_ The unstable cave ceiling collapses. 00441_ Attempting to rewire D-53 Grenadier. 00442_ D-53 Grenadier knocked back. 00442_ Attempting to rewire D-53 Grenadier. 00443_ The unstable cave ceiling collapses. 00443_ as-76552 destroyed. 00443_ as-59201 destroyed. 00443_ Attempting to rewire D-53 Grenadier. 00445_ U-05 Engineer lays Concrete. 00445_ as-53120 destroyed. 00445_ as-97980 destroyed. 00445_ as-09869 destroyed. 00445_ as-46237 destroyed. 00447_ as-14852 destroyed. Map ----- +----------------------------------------------------+ | ????????????????????????????????????????????? | | ????????????????????????????????????????????? | | ????????????????????????????????????????????? | | ????????????????????????????????????????????? | | ????????????????????????????????????????????? | | ????????????????????????????????????????????? | | ????????????????????????????????????????????? | | ????????????????????????????????????????????? | | ????????????????????????????????????????????? | | ????????????????????????????????????????????? | | ????????????????????????????????????????????? | | ????????????????????????????????????????????? | | ????????????????????????????????????????????? | | ????????????????????????????????????????????? | | ????????????????????????????????????????????? | | ????????????????????????????????????????????? | | ????????????????????????????????????????????? | | ???????????????????###??????????????????????? | | ???????????????##### ??????????????????????? | | ????????????#### # #?????????????????????? | | ?????????????a u ###??????????????????? | | ??????????????# %a #??????????????????? | | ??????????????# %% ##?????????????#???? | | ???????????????# ##????????????????? | | ???????????????# < #??? ????????????? | | ???????????????# @ ##???????????????? | | ????????????????# d !##????????????????? | | ????????????????# d ##????????????????? | | ???????????????## #????????????????? | | ???????????????# #??????#???####??? | | ???????????????#a # ##?????????## ##?? | | ???????????????# # ##????????# ##? | | ???????????????##?## #????????# #? | | ???????????????????# ###?#????## [ #? | | ???????????????????# # # ######??## #? | | ???????????????????####### #### ##? | | ?????#???????????????????# ## ##?? | | ????????????????????#??#?##### ####??? | | ?????????????????????????????# ##?????? | | ?????????#???????????#??????## #??????? | | ???????????????###########?## #??????? | | ??????????? ???# ### ### ##??????? | | ???????????????# ### ## ###?####???????? | | ???????????????# #?# ### ##??????#???????? | | ???????????????# #?# #?## ##??#??????#?????? | | ????????#??????# #?# #??####?????#??????????? | | ???????????????# #?# #????????????#?????????? | | ???????????????# #?# #??????????????????????? | | ???#???????????# #?# #??????????????????????? | | ???#####???????#[#?# ??????#??????????#????? | +----------------------------------------------------+ Best States ------------- Heat Dissipation 35 Energy Generation 10 Energy Capacity 125 Matter Stores 300 Matter Capacity 300 Sight Range 16 Terrain Scan Range 14 Terrain Scan Density 10 Evasion (%) 55 Recoil Reduction 1 Item Schematics ----------------- None Robot Schematics ------------------ None Fabricated ------------ Nothing Alien Tech Used ----------------- None Achievements -------------- None Challenges ------------ None Game ------ Seed MatterCoolantMaul Manual? 0 Play Time 00:10:35 Cumulative 83.9 hours Start 2024.07.19 @ 00:34:08 End 2024.07.19 @ 00:42:16 Sessions 1 Manual Loads 0 Difficulty Rogue Special Mode None Game No. 43 Rogue 43 Adventurer 0 Explorer 0 Win Type - Total 0 Types 0/0/0/0/0/0/0/0/0 Lore% 29 Gallery% 44 Achievement% 32 Wizard Run 0 Options --------- Layout 0 ASCII 0 Keyboard 0 Movement Mouse Keybinds 0 Fullscreen 1 Font 18/SmallcapsGlow Map View 76x50 Zoom Use 0% Tactical HUD 1 Map Filters NONE Filters NONE Steam 1 RUN: 046793ae-9fb6-4d86-8585-9c57e62e8dc5